bitfinex-derivatives/quotes_SOLF0:USTF0_20250413
["timestamp","ask_amount","ask_price","bid_price","bid_amount"]
[1744528251469,6.65142578,129.24,129.18,6.71033323]
[1744528251470,17.67877815,129.26,129.18,35.33033323]
[1744528251768,17.67877815,129.26,129.22,6.65142578]
[1744528251970,17.67877815,129.26,129.22,35.27142578]
[1744528252165,17.67877815,129.26,129.22,28.62]
[1744528252366,6.65142578,129.25,129.22,28.62]
[1744528252564,6.71084981,129.25,129.23,0.05189507]
[1744528253272,14.44954981,129.25,129.23,0.05189507]
[1744528254273,6.71084981,129.25,129.23,7.79129507]
[1744528254471,0.05942403,129.25,129.23,0.05189507]
[1744528254768,0.05942403,129.25,129.23,7.79129507]
[1744528255267,0.05942403,129.25,129.24,7.7389]
[1744528255969,4.0988,129.3,129.23,10.43211958]
[1744528256270,28.62,129.32,129.23,10.43211958]
[1744528256471,7.7348,129.31,129.27,7.7367]
[1744528257072,0.05458204,129.3,129.28,0.05221783]
[1744528260572,28.65458204,129.3,129.22,28.6]
[1744528260773,7.7368,129.28,129.24,7.7383]
[1744528261576,0.05743529,129.27,129.25,0.05079456]
[1744528261782,0.05743529,129.27,129.25,7.78899456]
[1744528261977,0.05743529,129.27,129.25,28.65079456]
[1744528262178,38.98022451,129.33,129.25,28.65079456]
[1744528262374,38.98022451,129.33,129.25,28.6]
[1744528263281,0.05064339,129.3,129.29,7.7359]
[1744528263480,0.05064339,129.3,129.28,0.04929797]
[1744528264280,0.05064339,129.3,129.28,7.78539797]
[1744528264581,0.05064339,129.3,129.28,0.04929797]
[1744528265184,7.78624339,129.3,129.28,0.04929797]
[1744528267688,0.05064339,129.3,129.28,0.04929797]
[1744528268688,0.05064339,129.3,129.29,7.7359]
[1744528269389,402.98022451,129.37,129.31,7.7342]
[1744528269588,28.6,129.37,129.29,38.98022451]
[1744528270188,7.732,129.36,129.29,38.98022451]
[1744528270384,28.6,129.37,129.29,38.98022451]
[1744528270590,0.05542178,129.34,129.32,7.7337]
[1744528272291,0.05542178,129.34,129.33,7.7335]
[1744528272686,0.05542178,129.34,129.31,0.05254871]
[1744528274089,0.05542178,129.34,129.32,7.7338]
[1744528274794,0.05542178,129.34,129.31,0.05254871]
[1744528275193,30.61162178,129.34,129.31,0.05254871]
[1744528275393,7.7341,129.32,129.31,0.05254871]
[1744528277395,12.0267,129.33,129.31,0.05254871]
[1744528277695,4.2931,129.33,129.31,0.05254871]
[1744528277997,4.2931,129.33,129.31,7.78724871]
[1744528278396,4.2931,129.33,129.31,0.05254871]
[1744528279097,12.0266,129.33,129.31,0.05254871]
[1744528279295,4.2931,129.33,129.31,0.05254871]
[1744528279496,28.63542178,129.34,129.31,0.05254871]
[1744528279693,36.36862178,129.34,129.31,7.78684871]
[1744528280598,36.36862178,129.34,129.31,0.05254871]
[1744528281099,36.36862178,129.34,129.31,7.78714871]
[1744528281893,7.78862178,129.34,129.31,7.78714871]
[1744528282102,0.05542178,129.34,129.32,7.734]
[1744528282289,0.05542178,129.34,129.31,0.05254871]
[1744528282494,0.05542178,129.34,129.33,7.7335]
[1744528282697,0.05542178,129.34,129.31,0.05254871]
[1744528283095,7.78872178,129.34,129.31,0.05254871]
[1744528283403,0.05542178,129.34,129.31,0.05254871]
[1744528283801,0.05542178,129.34,129.31,7.78684871]
[1744528285797,7.7336,129.33,129.31,0.05254871]
[1744528287898,39.01564629,129.34,129.24,1.34573368]
[1744528288102,14.52052451,129.32,129.25,28.58]
[1744528288297,14.52052451,129.32,129.22,612.86]
[1744528288298,10.38022451,129.3,129.22,612.86]
[1744528288498,7.7369,129.28,129.24,7.7385]
[1744528288994,7.7369,129.28,129.25,7.7383]
[1744528289199,0.05404071,129.27,129.25,0.05622534]
[1744528289705,0.05404071,129.27,129.26,7.7377]
[1744528290098,0.05404071,129.27,129.25,0.05622534]
[1744528292407,7.7377,129.26,129.25,0.05622534]
[1744528294209,7.79134071,129.27,129.25,0.05622534]
[1744528295406,0.05404071,129.27,129.25,0.05622534]
[1744528296709,0.05404071,129.27,129.25,7.79422534]
[1744528302214,0.05404071,129.27,129.25,0.05622534]
[1744528302413,4.19584071,129.27,129.2,28.74]
[1744528302612,10.38022451,129.26,129.2,28.74]
[1744528302814,10.38022451,129.26,129.22,7.74]
[1744528303516,7.78737471,129.25,129.23,0.05907159]
[1744528303714,0.04877471,129.25,129.15,15.28762162]
[1744528303915,10.38022451,129.24,129.17,28.76]
[1744528304212,7.7401,129.22,129.18,7.742]
[1744528304415,7.7401,129.22,129.17,28.76]
[1744528304917,0.05407759,129.21,129.18,7.7919134]
[1744528305116,0.05407759,129.21,129.18,0.0496134]
[1744528305717,0.05407759,129.21,129.19,7.7415]
[1744528306118,0.05407759,129.21,129.18,0.0496134]
[1744528306318,0.05407759,129.21,129.2,7.7413]
[1744528306918,0.05407759,129.21,129.2,36.5013]
[1744528307113,6.1948,129.27,129.2,28.76]
[1744528307318,7.738,129.26,129.2,28.76]
[1744528307622,7.738,129.26,129.22,7.7396]
[1744528308220,0.05458819,129.25,129.23,0.0590348]
[1744528308717,10.38022451,129.24,129.17,28.76]
[1744528309518,7.7398,129.23,129.19,7.7418]
[1744528309719,0.05250502,129.22,129.2,0.05118628]
[1744528310420,0.05250502,129.22,129.2,7.79228628]
[1744528311122,0.05250502,129.22,129.2,0.05118628]
[1744528311325,12.42972953,129.22,129.17,28.76]
[1744528311524,41.18972953,129.22,129.14,28.76]
[1744528311825,41.13722451,129.22,129.14,28.76]
[1744528312019,7.7417,129.2,129.16,7.7431]
[1744528312524,0.05928792,129.19,129.16,7.7431]
[1744528314325,0.05928792,129.19,129.17,7.7429]
[1744528315924,0.05928792,129.19,129.18,7.7425]
[1744528318325,32.8054,129.26,129.23,7.7393]
[1744528318724,50.92362451,129.26,129.23,7.7393]
[1744528319020,43.18562451,129.26,129.2,28.76]
[1744528319221,7.7386,129.25,129.2,28.76]
[1744528319534,0.05716688,129.24,129.22,0.05211946]
[1744528319827,381.64748537,129.3,129.22,0.05211946]
[1744528320026,381.64748537,129.3,129.23,10.38022451]
[1744528320027,17.64748537,129.3,129.23,10.38022451]
[1744528320431,7.7363,129.29,129.25,7.7382]
[1744528320635,17.64748537,129.3,129.22,28.76]
[1744528320822,10.38022451,129.31,129.22,28.76]
[1744528321028,0.05631497,129.27,129.25,0.05575614]
[1744528321332,0.05871884,129.27,129.26,7.7377]
[1744528322227,4.0091,129.32,129.31,7.7347]
[1744528322931,4.0091,129.32,129.3,7.7351]
[1744528323130,4.0091,129.32,129.25,28.76]
[1744528323531,0.05528176,129.3,129.27,0.05653707]
[1744528324334,0.05528176,129.3,129.29,7.7354]
[1744528326830,0.05528176,129.3,129.27,0.05653707]
[1744528327133,28.91528176,129.3,129.27,0.05653707]
[1744528327331,36.65088176,129.3,129.27,0.05653707]
[1744528328533,7.736,129.29,129.27,0.05653707]
[1744528328734,10.38022451,129.29,129.24,7.7383]
[1744528329036,10.38022451,129.27,129.24,7.7383]
[1744528329232,10.38022451,129.29,129.25,7.7382]
[1744528329730,10.38022451,129.29,129.2,28.86]
[1744528329930,0.05223217,129.28,129.2,28.86]
[1744528330227,0.05182101,129.25,129.23,7.78784817]
[1744528330435,0.05182101,129.25,129.23,0.04874817]
[1744528330832,7.7389,129.24,129.23,0.04874817]
[1744528331137,0.05182101,129.25,129.23,0.04874817]
[1744528331537,7.79032101,129.25,129.23,0.04874817]
[1744528332034,7.7389,129.24,129.23,0.04874817]
[1744528332235,28.86,129.24,129.16,28.86]
[1744528332435,10.38022451,129.22,129.16,28.86]
[1744528332936,10.38022451,129.2,129.13,28.86]
[1744528333335,0.0520597,129.18,129.16,7.7432]
[1744528333734,0.0520597,129.18,129.15,0.05493835]
[1744528333940,0.0520597,129.18,129.17,7.7431]
[1744528336447,39.24022451,129.24,129.16,28.86]
[1744528336843,39.24022451,129.24,129.18,7.7422]
[1744528337045,10.38022451,129.22,129.18,7.7422]
[1744528337446,0.0586684,129.21,129.19,0.05287917]
[1744528338047,28.9186684,129.21,129.19,0.05287917]
[1744528338342,0.0586684,129.21,129.19,0.05287917]
[1744528338945,0.0586684,129.21,129.2,7.7413]
[1744528341455,2.09,129.26,129.23,7.7394]
[1744528342456,2.14898727,129.26,129.23,7.79658863]
[1744528346362,0.05898727,129.26,129.25,7.7383]
[1744528347461,0.05898727,129.26,129.23,0.05718863]
[1744528347662,10.43921178,129.26,129.23,0.05718863]
[1744528347858,12.56971178,129.26,129.23,0.05718863]
[1744528348062,7.7383,129.25,129.23,0.05718863]
[1744528348359,12.56971178,129.26,129.23,0.05718863]
[1744528349364,7.7389,129.24,129.23,0.05718863]
[1744528351759,36.5989,129.24,129.23,0.05718863]
[1744528351964,28.86,129.24,129.19,28.86]
[1744528352464,36.5992,129.24,129.2,7.7408]
[1744528352763,28.86,129.24,129.19,28.86]
[1744528352961,2.1305,129.26,129.23,7.739]
[1744528353454,2.18483825,129.26,129.23,7.739]
[1744528355567,2.18483825,129.26,129.22,7.7399]
[1744528356068,7.7383,129.25,129.22,7.7399]
[1744528357468,10.38022451,129.24,129.21,0.05221734]
[1744528357770,12.42502451,129.24,129.21,0.05221734]
[1744528358272,7.7399,129.23,129.21,0.05221734]
[1744528358764,7.79696653,129.23,129.21,0.05221734]
[1744528359975,0.05706653,129.23,129.21,0.05221734]
[1744528360274,0.05706653,129.23,129.21,7.79271734]
[1744528360469,0.05706653,129.23,129.21,0.05221734]
[1744528361070,0.05706653,129.23,129.22,7.7401]
[1744528363773,10.38022451,129.29,129.26,7.7376]
[1744528363978,10.38022451,129.29,129.22,28.8]
[1744528364378,7.7366,129.28,129.25,7.7382]
[1744528364775,7.78987744,129.28,129.25,7.7967756]
[1744528366982,0.05327744,129.28,129.25,7.7967756]
[1744528367882,7.78977744,129.28,129.25,7.7967756]
[1744528368180,0.05327744,129.28,129.25,0.0585756]
[1744528368978,7.79007744,129.28,129.25,7.7964756]
[1744528370783,10.38022451,129.27,129.22,28.8]
[1744528370975,39.18022451,129.27,129.19,28.8]
[1744528371883,0.0536045,129.24,129.22,0.05261164]
[1744528372284,0.0536045,129.24,129.23,7.7391]
[1744528374184,40.6198,129.3,129.22,39.23283615]
[1744528374385,72.29681408,129.31,129.24,10.38022451]
[1744528374580,72.29681408,129.31,129.26,10.38022451]
[1744528374779,72.29681408,129.31,129.28,10.38022451]
[1744528374975,72.29681408,129.31,129.3,7.7353]
[1744528376384,0.04973591,129.32,129.3,7.7353]
[1744528376988,0.04973591,129.32,129.31,7.7347]
[1744528377883,0.04973591,129.32,129.3,7.7351]
[1744528378083,0.04973591,129.32,129.29,28.85065449]
[1744528378789,0.04973591,129.32,129.29,0.05065449]
[1744528379285,7.735,129.31,129.29,0.05065449]
[1744528379989,7.7353,129.3,129.29,0.05065449]
[1744528380186,10.38022451,129.31,129.26,28.78]
[1744528380388,10.38022451,129.29,129.23,28.78]
[1744528380590,7.7374,129.27,129.23,7.739]
[1744528380790,10.38022451,129.29,129.23,7.739]
[1744528380991,10.38022451,129.29,129.22,7.7396]
[1744528381193,7.7373,129.27,129.21,28.78]
[1744528381494,0.05756579,129.26,129.24,0.05644038]
[1744528381797,0.05756579,129.26,129.25,7.7378]
[1744528390397,0.05756579,129.26,129.24,28.83644038]
[1744528390603,0.05756579,129.26,129.24,0.05644038]
[1744528391199,7.79556579,129.26,129.24,0.05644038]
[1744528391399,0.05756579,129.26,129.24,0.05644038]
[1744528391800,0.05756579,129.26,129.24,7.79504038]
[1744528394302,0.05756579,129.26,129.25,7.7383]
[1744528403016,0.05756579,129.26,129.24,36.49494038]
[1744528403612,0.05756579,129.26,129.25,7.7383]
[1744528407120,0.05756579,129.26,129.24,36.49504038]
[1744528407313,0.05756579,129.26,129.24,0.05644038]
[1744528407721,0.05756579,129.26,129.24,7.79534038]
[1744528410021,0.05756579,129.26,129.25,7.7383]
[1744528412414,0.05756579,129.26,129.24,7.79524038]
[1744528414329,0.05756579,129.26,129.25,7.7383]
[1744528422323,0.05756579,129.26,129.24,0.05644038]
[1744528422824,0.05756579,129.26,129.24,7.79524038]
[1744528423231,0.05756579,129.26,129.24,0.05644038]
[1744528423526,7.79526579,129.26,129.24,0.05644038]
[1744528427429,14.43951529,129.26,129.24,0.05644038]
[1744528427626,7.7383,129.25,129.24,0.05644038]
[1744528428833,7.7383,129.25,129.22,7.7398]
[1744528429028,6.6442495,129.24,129.22,7.7398]
[1744528429228,14.3831495,129.24,129.21,36.4404]
[1744528429431,6.6442495,129.24,129.21,28.7]
[1744528429931,6.6442495,129.24,129.21,28.74957489]
[1744528430229,6.6442495,129.24,129.22,7.7401]
[1744528430928,6.70181529,129.26,129.23,7.7395]
[1744528432031,14.43961529,129.26,129.23,7.7395]
[1744528437742,6.6442495,129.24,129.22,7.7398]
[1744528439134,6.6442495,129.24,129.21,0.04957489]
[1744528439836,6.6442495,129.24,129.22,7.7396]
[1744528440435,6.6442495,129.24,129.21,0.04957489]
[1744528440636,14.43991529,129.26,129.21,0.04957489]
[1744528441140,14.43991529,129.26,129.23,7.7391]
[1744528441935,6.70181529,129.26,129.21,0.04957489]
[1744528442142,0.05756579,129.26,129.23,6.6442495]
[1744528442339,0.05756579,129.26,129.24,28.6]
[1744528442742,0.05756579,129.26,129.24,28.65821903]
[1744528443245,0.05756579,129.26,129.25,7.7383]
[1744528447152,10.7004495,129.32,129.25,6.6442495]
[1744528447348,10.7004495,129.32,129.27,6.6442495]
[1744528447851,10.7004495,129.32,129.29,7.7355]
[1744528448151,10.75965184,129.32,129.29,7.7905105]
[1744528448344,0.05920234,129.32,129.29,6.69926]
[1744528449154,0.05920234,129.32,129.31,7.7347]
[1744528450444,6.70345184,129.32,129.29,0.0550105]
[1744528451256,14.43765184,129.32,129.29,7.7907105]
[1744528452356,6.70345184,129.32,129.29,7.7907105]
[1744528453557,6.70345184,129.32,129.3,7.7352]
[1744528454153,0.05920234,129.32,129.31,7.7347]
[1744528459861,0.05920234,129.32,129.3,7.7351]
[1744528460167,6.6442495,129.31,129.29,0.0550105]
[1744528460862,6.6442495,129.31,129.29,7.7906105]
[1744528467766,0.05920234,129.32,129.29,0.0550105]
[1744528468266,7.7356,129.3,129.22,1.34604599]
[1744528468567,6.6442495,129.29,129.24,6.6442495]
[1744528468964,14.3802495,129.29,129.26,7.7374]
[1744528469467,6.69884374,129.29,129.27,7.7371]
[1744528469667,6.69884374,129.29,129.26,0.05097474]
[1744528470067,0.05459424,129.29,129.27,7.7371]
[1744528470268,0.05459424,129.29,129.26,0.05097474]
[1744528470570,14.43504374,129.29,129.26,7.78837474]
[1744528470862,14.43504374,129.29,129.26,0.05097474]
[1744528471066,6.69884374,129.29,129.26,0.05097474]
[1744528471368,7.7365,129.28,129.26,0.05097474]
[1744528473371,6.69884374,129.29,129.2,6.6442495]
[1744528473372,6.6442495,129.27,129.2,6.6442495]
[1744528473670,6.6442495,129.25,129.21,28.58]
[1744528473867,6.6442495,129.25,129.23,7.7392]
[1744528474269,7.738,129.26,129.23,7.7392]
[1744528474471,7.78675614,129.26,129.23,7.7606214]
[1744528475071,0.04875614,129.26,129.24,7.7388]
[1744528475267,0.04875614,129.26,129.23,0.0214214]
[1744528475574,0.04875614,129.26,129.25,7.7383]
[1744528476774,0.04875614,129.26,129.24,7.7387]
[1744528477776,0.04875614,129.26,129.25,7.7383]
[1744528488281,37.2757495,129.31,129.28,7.736]
[1744528488480,37.2757495,129.31,129.26,6.6442495]
[1744528488680,8.6957495,129.31,129.26,6.6442495]
[1744528488879,8.6957495,129.31,129.29,7.7354]
[1744528489382,8.6957495,129.31,129.29,7.78662103]
[1744528489383,8.75290366,129.31,129.29,7.78662103]
[1744528490781,8.75290366,129.31,129.3,7.7353]
[1744528492490,0.05715416,129.31,129.3,7.7353]
[1744528494788,6.6442495,129.36,129.34,7.7325]
[1744528495093,78.94106358,129.39,129.32,6.6442495]
[1744528495388,6.6442495,129.37,129.32,6.6442495]
[1744528495588,6.6442495,129.38,129.32,6.6442495]
[1744528496085,0.05539886,129.36,129.35,7.7319]
[1744528500594,6.6442495,129.39,129.34,6.69764758]
[1744528500595,13.1025495,129.41,129.34,6.69764758]
[1744528500795,6.6442495,129.43,129.38,6.6442495]
[1744528500991,6.6442495,129.44,129.38,35.2242495]
[1744528501195,6.6442495,129.44,129.4,7.729]
[1744528501593,14.3717495,129.44,129.41,0.05956159]
[1744528501798,0.05818302,129.43,129.41,0.05956159]
[1744528502293,0.05818302,129.43,129.41,7.78816159]
[1744528502695,0.05818302,129.43,129.41,0.05956159]
[1744528502896,0.05818302,129.43,129.42,7.7281]
[1744528503097,0.05818302,129.43,129.41,28.61956159]
[1744528503299,6.6442495,129.42,129.41,0.05956159]
[1744528507703,6.6442495,129.42,129.38,28.56]
[1744528507907,6.6442495,129.4,129.34,6.6442495]
[1744528508297,14.3740495,129.4,129.36,7.7313]
[1744528508502,6.6442495,129.4,129.36,7.7313]
[1744528508698,6.6442495,129.38,129.36,7.7313]
[1744528509106,6.6442495,129.38,129.36,7.78739072]
[1744528509307,6.69531927,129.38,129.36,7.78739072]
[1744528509607,6.69531927,129.38,129.36,0.05609072]
[1744528510010,7.7311,129.37,129.36,0.05609072]
[1744528510309,6.69531927,129.38,129.36,0.05609072]
[1744528510809,0.05106977,129.38,129.37,7.7311]
[1744528511801,28.56,129.43,129.4,7.7291]
[1744528512008,28.56,129.43,129.38,6.6442495]
[1744528512205,6.6442495,129.44,129.38,6.6442495]
[1744528512408,4.0567,129.45,129.4,6.6442495]
[1744528512600,4.0567,129.45,129.41,28.56]
[1744528513005,0.05689737,129.44,129.43,7.7272]
[1744528513407,0.05689737,129.44,129.42,0.04947253]
[1744528515512,0.05689737,129.44,129.42,7.77737253]
[1744528515910,0.05689737,129.44,129.42,0.04947253]
[1744528516113,7.78389737,129.44,129.42,0.04947253]
[1744528516313,0.05689737,129.44,129.42,0.04947253]
[1744528516815,0.05689737,129.44,129.42,7.77717253]
[1744528517116,0.05689737,129.44,129.42,0.04947253]
[1744528518515,10.40685213,129.44,129.32,38.88995476]
[1744528518719,7.7309,129.38,129.34,7.7325]
[1744528519117,4.0938,129.39,129.32,28.54]
[1744528519519,0.05750977,129.37,129.34,0.05233071]
[1744528519820,7.78900977,129.37,129.34,0.05233071]
[1744528520016,0.05750977,129.37,129.34,0.05233071]
[1744528520321,0.05750977,129.37,129.35,7.7323]
[1744528520520,0.05750977,129.37,129.34,0.05233071]
[1744528521022,7.7317,129.36,129.34,0.05233071]
[1744528521521,0.05750977,129.37,129.34,0.05233071]
[1744528521723,7.78890977,129.37,129.34,0.05233071]
[1744528521918,28.59750977,129.37,129.32,7.734]
[1744528522119,7.733,129.34,129.29,28.54]
[1744528522316,2.1051,129.33,129.29,28.54]
[1744528522923,2.1051,129.33,129.31,7.7347]
[1744528523128,0.04985005,129.32,129.31,7.7347]
[1744528523519,0.04985005,129.32,129.3,7.78462302]
[1744528523718,0.04985005,129.32,129.3,0.04952302]
[1744528524124,0.04985005,129.32,129.31,7.7347]
[1744528527325,0.04985005,129.32,129.3,0.04952302]
[1744528528126,0.04985005,129.32,129.31,7.7347]
[1744528536924,12.39035476,129.38,129.34,7.7326]
[1744528537130,14.38175476,129.38,129.34,7.7326]
[1744528537430,14.38175476,129.38,129.29,28.56]
[1744528537431,6.63250438,129.37,129.32,6.63250438]
[1744528537734,6.63250438,129.37,129.34,7.7326]
[1744528538029,14.36400438,129.37,129.32,28.56]
[1744528538226,14.41349551,129.37,129.34,0.05009097]
[1744528539032,6.63250438,129.35,129.27,1.6908]
[1744528539233,6.63250438,129.28,129.22,35.19250438]
[1744528539531,6.63250438,129.28,129.23,28.56]
[1744528539731,6.63250438,129.28,129.25,7.7378]
[1744528540121,6.68529101,129.28,129.25,7.78883951]
[1744528540533,6.68529101,129.28,129.26,7.7374]
[1744528541036,0.05278663,129.28,129.27,7.7371]
[1744528541332,28.56,129.34,129.26,28.56]
[1744528541737,28.56,129.34,129.27,10.37098755]
[1744528542435,0.05352787,129.32,129.29,0.0543378]
[1744528543235,0.05352787,129.32,129.31,7.7347]
[1744528544836,0.05352787,129.32,129.29,28.6143378]
[1744528545039,0.05352787,129.32,129.29,0.0543378]
[1744528546039,7.7349,129.31,129.29,0.0543378]
[1744528547640,7.78792787,129.32,129.29,0.0543378]
[1744528548339,7.7348,129.31,129.29,0.0543378]
[1744528549039,10.37098755,129.31,129.25,7.7379]
[1744528549240,4.2015,129.3,129.23,28.56]
[1744528550136,0.05274361,129.28,129.26,7.7372]
[1744528550437,0.05274361,129.28,129.26,28.56]
[1744528551040,0.05274361,129.28,129.27,7.7371]
[1744528552140,28.56,129.34,129.31,7.7344]
[1744528552440,28.56,129.34,129.26,28.56]
[1744528552742,28.56,129.34,129.31,7.7343]
[1744528553240,36.2932,129.34,129.31,7.7343]
[1744528553439,36.34747813,129.34,129.31,7.78449178]
[1744528554939,28.61427813,129.34,129.31,0.05019178]
[1744528555343,28.61427813,129.34,129.26,28.56]
[1744528555645,7.7344,129.32,129.28,7.7359]
[1744528556246,7.7344,129.32,129.29,7.7359]
[1744528556538,7.7353,129.3,129.29,0.04976065]
[1744528556942,12.46378755,129.31,129.29,0.04976065]
[1744528557141,20.19878755,129.31,129.29,0.04976065]
[1744528559544,7.7353,129.3,129.29,0.04976065]
[1744528560439,41.02378755,129.31,129.29,0.04976065]
[1744528560644,30.6528,129.31,129.29,0.04976065]
[1744528560844,0.05789458,129.32,129.29,0.04976065]
[1744528561442,0.05789458,129.32,129.3,7.735]
[1744528562047,0.05789458,129.32,129.31,7.7347]
[1744528564145,0.05789458,129.32,129.29,0.04976065]
[1744528564346,10.42888213,129.32,129.29,0.04976065]
[1744528564945,12.46868213,129.32,129.29,0.04976065]
[1744528565943,7.7353,129.3,129.29,0.04976065]
[1744528566146,38.93098755,129.3,129.24,28.56]
[1744528566549,7.7363,129.29,129.25,7.7377]
[1744528567250,0.051508,129.28,129.26,0.02343459]
[1744528568049,0.051508,129.28,129.27,28.56]
[1744528568348,80.02921408,129.35,129.27,28.56]
[1744528568550,72.29681408,129.35,129.28,10.37098755]
[1744528568950,72.29681408,129.35,129.28,14.57068755]
[1744528569350,0.05650081,129.33,129.3,0.04923083]
[1744528569551,0.05650081,129.33,129.31,28.56]
[1744528569752,0.05650081,129.33,129.32,7.7341]
[1744528573354,0.05650081,129.33,129.31,36.2943]
[1744528573653,0.05650081,129.33,129.31,7.7343]
[1744528574955,0.05650081,129.33,129.32,7.7341]
[1744528576657,0.05650081,129.33,129.3,0.04923083]
[1744528577059,18.10608755,129.31,129.25,28.56]
[1744528578254,0.05533615,129.29,129.27,7.76231176]
[1744528581155,0.05533615,129.29,129.27,0.02571176]
[1744528581359,10.4263237,129.29,129.27,0.02571176]
[1744528582059,10.4263237,129.29,129.22,28.56]
[1744528582259,2.1426,129.28,129.22,28.56]
[1744528582859,38.93098755,129.27,129.22,28.56]
[1744528583056,38.93098755,129.27,129.19,641.14]
[1744528583256,0.04918846,129.26,129.23,7.7391]
[1744528583757,10.37098755,129.25,129.19,28.56]
[1744528583949,30.6431,129.24,129.19,28.56]
[1744528584154,0.05667966,129.23,129.19,28.56]
[1744528585360,0.05667966,129.23,129.22,7.7401]
[1744528586061,0.05667966,129.23,129.21,7.7404]
[1744528586561,0.05667966,129.23,129.2,7.741]
[1744528586755,0.05667966,129.23,129.19,28.56]
[1744528588971,7.79657966,129.23,129.2,7.7412]
[1744528589163,0.05667966,129.23,129.13,614.04693167]
[1744528589361,12.49818755,129.22,129.14,28.58]
[1744528589569,0.05820531,129.19,129.14,28.58]
[1744528590270,0.05820531,129.19,129.17,7.7427]
[1744528591873,0.05820531,129.19,129.14,28.58]
[1744528591874,7.80010531,129.19,129.16,7.7436]
[1744528592167,0.05820531,129.19,129.14,28.58]
[1744528592470,0.05820531,129.19,129.18,7.7425]
[1744528592671,0.05820531,129.19,129.14,28.58]
[1744528593772,0.05820531,129.19,129.17,7.7427]
[1744528594173,0.05820531,129.19,129.14,28.58]
[1744528594377,0.05820531,129.19,129.18,7.7425]
[1744528598378,5.31e-06,129.19,129.18,7.7425]
[1744528598673,5.31e-06,129.19,129.18,18.11348755]
[1744528599178,5.31e-06,129.19,129.18,22.39358755]
[1744528599876,5.31e-06,129.19,129.18,7.7425]
[1744528602874,5.31e-06,129.19,129.17,36.38065879]
[1744528603080,5.31e-06,129.19,129.17,0.05785879]
[1744528603376,7.743,129.18,129.14,7.7445]
[1744528603577,18.11398755,129.18,129.14,7.7445]
[1744528603778,10.37098755,129.18,129.14,7.7445]
[1744528603980,7.7432,129.17,129.14,7.7445]
[1744528604179,10.37098755,129.18,129.14,7.7445]
[1744528604477,0.05131815,129.17,129.14,7.7445]
[1744528604678,0.05131815,129.17,129.11,28.58]
[1744528606281,0.05131815,129.17,129.15,7.7439]
[1744528606478,0.05131815,129.17,129.11,28.58]
[1744528607082,0.05131815,129.17,129.16,7.7437]
[1744528608284,0.05131815,129.17,129.11,28.58]
[1744528610181,0.05131815,129.17,129.16,7.7437]
[1744528612092,0.05131815,129.17,129.15,7.744]
[1744528612486,0.05131815,129.17,129.1,10.37098755]
[1744528612685,7.79441815,129.17,129.14,7.7446]
[1744528613380,0.05131815,129.17,129.15,7.7441]
[1744528613586,0.05131815,129.17,129.11,28.58]
[1744528613985,0.05131815,129.17,129.16,7.7437]
[1744528619297,0.05131815,129.17,129.15,7.744]
[1744528619796,7.79461815,129.17,129.14,7.7443]
[1744528619997,0.05131815,129.17,129.11,28.58]
[1744528621599,0.05131815,129.17,129.12,10.37098755]
[1744528621892,0.05131815,129.17,129.16,7.7437]
[1744528629704,1.815e-05,129.17,129.16,7.7437]
[1744528630097,1.815e-05,129.17,129.16,18.11468755]
[1744528630600,1.815e-05,129.17,129.16,7.7437]
[1744528631597,1.815e-05,129.17,129.15,0.05157221]
[1744528632304,7.74321815,129.17,129.15,0.05157221]
[1744528633104,7.7437,129.16,129.15,0.05157221]
[1744528634203,1.815e-05,129.17,129.15,0.05157221]
[1744528635308,1.815e-05,129.17,129.15,7.79547221]
[1744528635604,1.815e-05,129.17,129.15,0.05157221]
[1744528635804,1.815e-05,129.17,129.16,7.7437]
[1744528643505,1.815e-05,129.17,129.15,7.79547221]
[1744528644502,1.815e-05,129.17,129.16,7.7437]
[1744528646902,1.815e-05,129.17,129.15,0.05157221]
[1744528647107,1.815e-05,129.17,129.15,7.79557221]
[1744528647409,1.815e-05,129.17,129.15,0.05157221]
[1744528647905,1.815e-05,129.17,129.16,7.7437]
[1744528648306,1.815e-05,129.17,129.15,0.05157221]
[1744528648607,1.815e-05,129.17,129.15,7.79547221]
[1744528649109,1.815e-05,129.17,129.15,0.05157221]
[1744528649309,2.06671815,129.17,129.15,0.05157221]
[1744528649508,10.37098755,129.16,129.11,28.58]
[1744528649712,10.37098755,129.14,129.08,28.58]
[1744528650007,38.95098755,129.16,129.08,28.58]
[1744528650506,0.05732313,129.13,129.08,28.58]
[1744528651813,0.05732313,129.13,129.11,7.7463]